[Event "Late-Titled-Tuesday-Blitz-February-20-2024"]
[Site "Chess.com"]
[Date "2024.02.20"]
[Round "7"]
[White "ContrVersia"]
[Black "platy3"]
[Result "0-1"]
[WhiteElo "2861"]
[BlackElo "2959"]
[TimeControl "180+1"]
[EndTime "15:17:54 PST"]
[Termination "platy3 won on time"]

1. Nf3 {[%clk 0:03:00.9]} 1... d5 {[%clk 0:02:57.6]} 2. c4 {[%clk 0:03:01]} 2...
e6 {[%clk 0:02:57.1]} 3. g3 {[%clk 0:03:01]} 3... d4 {[%clk 0:02:54.6]} 4. Bg2
{[%clk 0:02:59]} 4... Nc6 {[%clk 0:02:55]} 5. e3 {[%clk 0:02:58.2]} 5... Nh6
{[%clk 0:02:46.8]} 6. exd4 {[%clk 0:02:54.4]} 6... Nxd4 {[%clk 0:02:45.4]} 7.
Nxd4 {[%clk 0:02:51.2]} 7... Qxd4 {[%clk 0:02:46.3]} 8. d3 {[%clk 0:02:51.6]}
8... Nf5 {[%clk 0:02:45]} 9. O-O {[%clk 0:02:47.9]} 9... Be7 {[%clk 0:02:42.2]}
10. Nc3 {[%clk 0:02:43.3]} 10... c6 {[%clk 0:02:40.8]} 11. Ne2 {[%clk
0:02:39.2]} 11... Qb6 {[%clk 0:02:36.7]} 12. d4 {[%clk 0:02:36.3]} 12... O-O
{[%clk 0:02:35.4]} 13. c5 {[%clk 0:02:06.6]} 13... Qa6 {[%clk 0:02:24.3]} 14.
Qc2 {[%clk 0:02:04.2]} 14... Rd8 {[%clk 0:02:23.2]} 15. Rd1 {[%clk 0:02:04.1]}
15... Bf6 {[%clk 0:02:19.9]} 16. Bf1 {[%clk 0:02:00.6]} 16... Qa5 {[%clk
0:02:16.1]} 17. Bd2 {[%clk 0:01:57.7]} 17... Qc7 {[%clk 0:02:14.4]} 18. Bf4
{[%clk 0:01:55.2]} 18... Qe7 {[%clk 0:02:06.6]} 19. Be5 {[%clk 0:01:55.2]} 19...
Bd7 {[%clk 0:01:56.1]} 20. Bg2 {[%clk 0:01:48.5]} 20... Be8 {[%clk 0:01:24.1]}
21. Be4 {[%clk 0:01:47.4]} 21... g6 {[%clk 0:01:24.3]} 22. Bxf6 {[%clk
0:01:41.3]} 22... Qxf6 {[%clk 0:01:24.5]} 23. Bxf5 {[%clk 0:01:38.9]} 23... exf5
{[%clk 0:01:21]} 24. Qc3 {[%clk 0:01:32.7]} 24... b6 {[%clk 0:01:07.9]} 25. Rac1
{[%clk 0:01:23.8]} 25... Rab8 {[%clk 0:01:06.1]} 26. b3 {[%clk 0:01:12.4]} 26...
Bd7 {[%clk 0:00:51.4]} 27. h4 {[%clk 0:00:50.3]} 27... Be6 {[%clk 0:00:48.4]}
28. cxb6 {[%clk 0:00:43.3]} 28... Rxb6 {[%clk 0:00:46.9]} 29. Nf4 {[%clk
0:00:36.6]} 29... Bd5 {[%clk 0:00:44.8]} 30. Re1 {[%clk 0:00:37]} 30... Rb7
{[%clk 0:00:40.5]} 31. Re5 {[%clk 0:00:36.3]} 31... Rbd7 {[%clk 0:00:39.6]} 32.
Rce1 {[%clk 0:00:36]} 32... Be4 {[%clk 0:00:36.8]} 33. f3 {[%clk 0:00:16.6]}
33... Bd5 {[%clk 0:00:09.6]} 34. Re8+ {[%clk 0:00:16.4]} 34... Kg7 {[%clk
0:00:08.4]} 35. Qc5 {[%clk 0:00:16.5]} 35... Rxe8 {[%clk 0:00:06.2]} 36. Rxe8
{[%clk 0:00:17.4]} 36... Qd6 {[%clk 0:00:06.9]} 37. Qxd6 {[%clk 0:00:10.5]}
37... Rxd6 {[%clk 0:00:07.8]} 38. Kf2 {[%clk 0:00:11.3]} 38... Rd7 {[%clk
0:00:04]} 39. Ke3 {[%clk 0:00:08.9]} 39... Kf6 {[%clk 0:00:04.5]} 40. Nd3 {[%clk
0:00:08.7]} 40... Rb7 {[%clk 0:00:02]} 41. Nc5 {[%clk 0:00:08.4]} 41... Re7+
{[%clk 0:00:02.4]} 42. Rxe7 {[%clk 0:00:08.3]} 42... Kxe7 {[%clk 0:00:03.3]} 43.
a4 {[%clk 0:00:06]} 43... Kd6 {[%clk 0:00:02]} 44. b4 {[%clk 0:00:05.8]} 44...
Kc7 {[%clk 0:00:02.7]} 45. g4 {[%clk 0:00:04.8]} 45... fxg4 {[%clk 0:00:02.7]}
46. fxg4 {[%clk 0:00:05.7]} 46... h6 {[%clk 0:00:03.3]} 47. g5 {[%clk
0:00:05.7]} 47... hxg5 {[%clk 0:00:03.7]} 48. hxg5 {[%clk 0:00:06.6]} 48... Kd6
{[%clk 0:00:04.5]} 49. Kf4 {[%clk 0:00:07.1]} 49... Bc4 {[%clk 0:00:04.3]} 50.
Ke4 {[%clk 0:00:04.6]} 50... Ba2 {[%clk 0:00:04.3]} 51. a5 {[%clk 0:00:03.1]}
51... Bb1+ {[%clk 0:00:04.4]} 52. Ke3 {[%clk 0:00:03.1]} 52... Kd5 {[%clk
0:00:05.2]} 53. Nd7 {[%clk 0:00:02.5]} 53... Kc4 {[%clk 0:00:05.2]} 54. Ne5+
{[%clk 0:00:02.9]} 54... Kb5 {[%clk 0:00:04.2]} 0-1

[Event "Late-Titled-Tuesday-Blitz-February-20-2024"]
[Site "Chess.com"]
[Date "2024.02.20"]
[Round "7"]
[White "KorolDimitriy75"]
[Black "steepedgames"]
[Result "0-1"]
[WhiteElo "2416"]
[BlackElo "2564"]
[TimeControl "180+1"]
[EndTime "15:17:55 PST"]
[Termination "steepedgames won on time"]

1. d4 {[%clk 0:03:00.9]} 1... f5 {[%clk 0:02:59.5]} 2. c4 {[%clk 0:02:59.6]}
2... Nf6 {[%clk 0:03:00.1]} 3. Nf3 {[%clk 0:03:00.2]} 3... d6 {[%clk 0:03:00.6]}
4. b3 {[%clk 0:02:57.7]} 4... g6 {[%clk 0:03:01.1]} 5. Bb2 {[%clk 0:02:58.1]}
5... Bg7 {[%clk 0:03:01.9]} 6. g3 {[%clk 0:02:58.6]} 6... O-O {[%clk 0:03:02.5]}
7. Bg2 {[%clk 0:02:58.6]} 7... Qe8 {[%clk 0:02:58.3]} 8. d5 {[%clk 0:02:56.4]}
8... h6 {[%clk 0:02:57.3]} 9. O-O {[%clk 0:02:55.6]} 9... g5 {[%clk 0:02:57.7]}
10. Nc3 {[%clk 0:02:48.2]} 10... Qh5 {[%clk 0:02:55.3]} 11. Nd4 {[%clk
0:02:26.2]} 11... Ng4 {[%clk 0:02:32.2]} 12. h3 {[%clk 0:02:23.2]} 12... Ne5
{[%clk 0:02:32.1]} 13. e4 {[%clk 0:01:41.9]} 13... Qxd1 {[%clk 0:02:19.6]} 14.
Rfxd1 {[%clk 0:01:30.5]} 14... f4 {[%clk 0:02:15.7]} 15. g4 {[%clk 0:00:23.9]}
15... f3 {[%clk 0:02:13.2]} 16. Bf1 {[%clk 0:00:23.8]} 16... Na6 {[%clk
0:02:07.7]} 17. Nf5 {[%clk 0:00:19.1]} 17... Bxf5 {[%clk 0:02:00.5]} 18. exf5
{[%clk 0:00:17.1]} 18... c6 {[%clk 0:01:55.8]} 19. Ne4 {[%clk 0:00:14.4]} 19...
Rac8 {[%clk 0:01:40.9]} 20. Rab1 {[%clk 0:00:13]} 20... cxd5 {[%clk 0:01:34.8]}
21. Rxd5 {[%clk 0:00:13.9]} 21... Nb4 {[%clk 0:01:34.1]} 22. Ra5 {[%clk
0:00:13.5]} 22... a6 {[%clk 0:01:32]} 23. Bc3 {[%clk 0:00:11.8]} 23... Nec6
{[%clk 0:01:06.2]} 24. Ra4 {[%clk 0:00:11.3]} 24... Bxc3 {[%clk 0:00:56.6]} 25.
Nxc3 {[%clk 0:00:12.2]} 25... Rfd8 {[%clk 0:00:45.7]} 26. a3 {[%clk 0:00:11.8]}
26... Nc2 {[%clk 0:00:45]} 27. Nd5 {[%clk 0:00:11.5]} 27... Kf8 {[%clk 0:00:37]}
28. Rb2 {[%clk 0:00:11.3]} 28... N2d4 {[%clk 0:00:36.3]} 29. b4 {[%clk
0:00:10.1]} 29... Ne5 {[%clk 0:00:34.8]} 30. Rd2 {[%clk 0:00:08.3]} 30... Nb3
{[%clk 0:00:27.3]} 31. Rd1 {[%clk 0:00:07.4]} 31... Nxc4 {[%clk 0:00:26.4]} 32.
Bxc4 {[%clk 0:00:06.8]} 32... Rxc4 {[%clk 0:00:27.3]} 33. Nb6 {[%clk 0:00:06.7]}
33... Rc3 {[%clk 0:00:19.5]} 34. Nd5 {[%clk 0:00:06.4]} 34... Rc2 {[%clk
0:00:19.9]} 35. Ne3 {[%clk 0:00:06.2]} 35... Re2 {[%clk 0:00:19.5]} 36. b5
{[%clk 0:00:06.5]} 36... a5 {[%clk 0:00:17.6]} 37. b6 {[%clk 0:00:06]} 37... Rc8
{[%clk 0:00:16.6]} 38. Re4 {[%clk 0:00:06.2]} 38... Rc6 {[%clk 0:00:15]} 39. Re6
{[%clk 0:00:06.3]} 39... Rxb6 {[%clk 0:00:14.6]} 40. Rxh6 {[%clk 0:00:06.4]}
40... Nd2 {[%clk 0:00:12.5]} 41. Rg6 {[%clk 0:00:06]} 41... Ne4 {[%clk
0:00:12.2]} 42. h4 {[%clk 0:00:04.4]} 42... Nxf2 {[%clk 0:00:11.9]} 43. Rxg5
{[%clk 0:00:03.5]} 43... Nh3+ {[%clk 0:00:12.1]} 44. Kh1 {[%clk 0:00:03.7]}
44... Rbb2 {[%clk 0:00:11.5]} 45. Nf1 {[%clk 0:00:02.5]} 45... Nxg5 {[%clk
0:00:11.2]} 46. hxg5 {[%clk 0:00:02.3]} 46... f2 {[%clk 0:00:10.4]} 47. Kg2
{[%clk 0:00:02.3]} 47... Re1 {[%clk 0:00:10.8]} 48. Rd3 {[%clk 0:00:02]} 48...
Rbb1 {[%clk 0:00:10.4]} 49. Ng3 {[%clk 0:00:02.1]} 49... f1=Q+ {[%clk
0:00:10.7]} 50. Nxf1 {[%clk 0:00:02.1]} 50... Rxf1 {[%clk 0:00:10.9]} 51. g6
{[%clk 0:00:02.9]} 51... Rg1+ {[%clk 0:00:11.4]} 52. Kf3 {[%clk 0:00:03.1]}
52... Rbf1+ {[%clk 0:00:11.9]} 53. Ke2 {[%clk 0:00:03]} 53... Rf4 {[%clk
0:00:11.1]} 54. Rb3 {[%clk 0:00:01.8]} 54... Rgxg4 {[%clk 0:00:10.9]} 55. Rxb7
{[%clk 0:00:02.1]} 55... Rxf5 {[%clk 0:00:11.5]} 56. Rb8+ {[%clk 0:00:02.4]}
56... Kg7 {[%clk 0:00:12]} 57. Re8 {[%clk 0:00:02.3]} 57... Re5+ {[%clk
0:00:12.6]} 58. Kf3 {[%clk 0:00:02.7]} 58... Rxg6 {[%clk 0:00:13.5]} 59. Ra8
{[%clk 0:00:02.7]} 59... Rf6+ {[%clk 0:00:14.4]} 0-1

[Event "Late-Titled-Tuesday-Blitz-February-20-2024"]
[Site "Chess.com"]
[Date "2024.02.20"]
[Round "7"]
[White "ImportedItalianMaple"]
[Black "Pachonpower"]
[Result "1-0"]
[WhiteElo "2508"]
[BlackElo "2316"]
[TimeControl "180+1"]
[EndTime "15:17:56 PST"]
[Termination "ImportedItalianMaple won by resignation"]

1. Nf3 {[%clk 0:03:00.3]} 1... Nf6 {[%clk 0:02:28.4]} 2. g3 {[%clk 0:02:58.1]}
2... g6 {[%clk 0:02:28.3]} 3. Bg2 {[%clk 0:02:58]} 3... Bg7 {[%clk 0:02:29.2]}
4. O-O {[%clk 0:02:58.5]} 4... O-O {[%clk 0:02:30.1]} 5. d4 {[%clk 0:02:59.1]}
5... c5 {[%clk 0:02:29.5]} 6. dxc5 {[%clk 0:02:58.2]} 6... Nc6 {[%clk
0:02:29.4]} 7. c3 {[%clk 0:02:52.8]} 7... a5 {[%clk 0:02:29.5]} 8. Nbd2 {[%clk
0:02:34.7]} 8... e6 {[%clk 0:02:27.7]} 9. a4 {[%clk 0:02:30.9]} 9... Qe7 {[%clk
0:02:26.8]} 10. Nb3 {[%clk 0:02:30.1]} 10... Rd8 {[%clk 0:02:24.8]} 11. Bf4
{[%clk 0:02:25]} 11... e5 {[%clk 0:02:25.1]} 12. Be3 {[%clk 0:02:25.3]} 12... d5
{[%clk 0:02:22.9]} 13. cxd6 {[%clk 0:02:24.8]} 13... Rxd6 {[%clk 0:02:22.2]} 14.
Qc1 {[%clk 0:02:17.6]} 14... Qe6 {[%clk 0:02:20.3]} 15. Nc5 {[%clk 0:02:12.2]}
15... Qe7 {[%clk 0:02:13.8]} 16. Nd2 {[%clk 0:02:00.6]} 16... Bf5 {[%clk
0:02:03.9]} 17. Nc4 {[%clk 0:01:59.7]} 17... Rdd8 {[%clk 0:02:03.7]} 18. Nb6
{[%clk 0:01:55.8]} 18... Rab8 {[%clk 0:02:01.1]} 19. Rd1 {[%clk 0:01:38.4]}
19... Ng4 {[%clk 0:01:50.5]} 20. Rxd8+ {[%clk 0:01:36.7]} 20... Qxd8 {[%clk
0:01:49.2]} 21. Nd5 {[%clk 0:01:20.8]} 21... b6 {[%clk 0:01:44.2]} 22. Nd3
{[%clk 0:01:13]} 22... e4 {[%clk 0:01:40.1]} 23. h3 {[%clk 0:00:20.6]} 23...
Qxd5 {[%clk 0:00:58.7]} 24. hxg4 {[%clk 0:00:20.2]} 24... Bxg4 {[%clk
0:00:59.6]} 25. Nf4 {[%clk 0:00:18.5]} 25... Qe5 {[%clk 0:00:51.6]} 26. Qd2
{[%clk 0:00:17.8]} 26... Rd8 {[%clk 0:00:49.9]} 27. Qc2 {[%clk 0:00:18.1]} 27...
Bf5 {[%clk 0:00:48.7]} 28. Rd1 {[%clk 0:00:18.1]} 28... Rxd1+ {[%clk 0:00:48.4]}
29. Qxd1 {[%clk 0:00:19]} 29... h6 {[%clk 0:00:47.2]} 30. Qd5 {[%clk 0:00:18.8]}
30... Qxd5 {[%clk 0:00:34]} 31. Nxd5 {[%clk 0:00:19.7]} 31... Ne5 {[%clk
0:00:34.7]} 32. Bxb6 {[%clk 0:00:19.1]} 32... Nc4 {[%clk 0:00:34.9]} 33. Bc7
{[%clk 0:00:16.1]} 33... Nxb2 {[%clk 0:00:30.7]} 34. Ne7+ {[%clk 0:00:16.1]}
34... Kh7 {[%clk 0:00:29.9]} 35. Nxf5 {[%clk 0:00:16.7]} 35... gxf5 {[%clk
0:00:30.8]} 36. Bxa5 {[%clk 0:00:16.9]} 36... Nxa4 {[%clk 0:00:30.6]} 37. c4
{[%clk 0:00:15.9]} 37... Bd4 {[%clk 0:00:30.4]} 38. e3 {[%clk 0:00:15.9]} 38...
Bc5 {[%clk 0:00:28.9]} 39. g4 {[%clk 0:00:15.9]} 39... Kg6 {[%clk 0:00:28.8]}
40. gxf5+ {[%clk 0:00:16.1]} 40... Kxf5 {[%clk 0:00:29.7]} 41. Bh3+ {[%clk
0:00:16.5]} 41... Kg5 {[%clk 0:00:28.7]} 42. Kg2 {[%clk 0:00:16.8]} 42... f5
{[%clk 0:00:28.5]} 43. Kg3 {[%clk 0:00:15.9]} 43... Nb2 {[%clk 0:00:28.6]} 44.
Bf1 {[%clk 0:00:16.5]} 44... Bd6+ {[%clk 0:00:28.1]} 45. Kg2 {[%clk 0:00:16.4]}
45... h5 {[%clk 0:00:27.2]} 46. Bc3 {[%clk 0:00:17]} 46... Na4 {[%clk
0:00:27.1]} 47. Bd4 {[%clk 0:00:17.4]} 47... Bc5 {[%clk 0:00:27.2]} 48. Be2
{[%clk 0:00:17.6]} 48... Bd6 {[%clk 0:00:24.5]} 49. Bd1 {[%clk 0:00:18.1]} 49...
Nc5 {[%clk 0:00:25]} 50. Be2 {[%clk 0:00:18.5]} 50... h4 {[%clk 0:00:21.6]} 51.
f4+ {[%clk 0:00:18.7]} 51... exf3+ {[%clk 0:00:21.1]} 52. Bxf3 {[%clk
0:00:19.3]} 52... Nd3 {[%clk 0:00:20.5]} 53. Bd5 {[%clk 0:00:19.3]} 53... Ne1+
{[%clk 0:00:20.4]} 54. Kf2 {[%clk 0:00:19.1]} 54... Nd3+ {[%clk 0:00:21.1]} 55.
Kf3 {[%clk 0:00:19.1]} 55... Nc5 {[%clk 0:00:22]} 56. Kg2 {[%clk 0:00:17.9]}
56... Nd3 {[%clk 0:00:19.6]} 57. Kh3 {[%clk 0:00:18.4]} 57... Nf2+ {[%clk
0:00:18.6]} 58. Kg2 {[%clk 0:00:17.2]} 58... Nd3 {[%clk 0:00:19.5]} 59. Bb6
{[%clk 0:00:16.7]} 59... Bc5 {[%clk 0:00:19]} 60. Bd8+ {[%clk 0:00:17.1]} 60...
Kg6 {[%clk 0:00:17.9]} 61. Kf3 {[%clk 0:00:17.1]} 61... Ne1+ {[%clk 0:00:17.5]}
62. Ke2 {[%clk 0:00:17.2]} 62... Ng2 {[%clk 0:00:17.1]} 63. Bxg2 {[%clk
0:00:16.6]} 63... f4 {[%clk 0:00:15.9]} 64. exf4 {[%clk 0:00:15.8]} 64... Kf5
{[%clk 0:00:16.8]} 65. Kf3 {[%clk 0:00:15.9]} 65... Ke6 {[%clk 0:00:15.7]} 66.
Bh3+ {[%clk 0:00:16.1]} 66... Kf7 {[%clk 0:00:16.4]} 67. Bxh4 {[%clk 0:00:16.8]}
67... Bd6 {[%clk 0:00:15.5]} 68. Bf2 {[%clk 0:00:17.1]} 1-0

[Event "Late-Titled-Tuesday-Blitz-February-20-2024"]
[Site "Chess.com"]
[Date "2024.02.20"]
[Round "7"]
[White "Charodej1"]
[Black "NtcPou"]
[Result "1-0"]
[WhiteElo "2228"]
[BlackElo "2009"]
[TimeControl "180+1"]
[EndTime "15:17:56 PST"]
[Termination "Charodej1 won on time"]

1. e4 {[%clk 0:03:00.9]} 1... c6 {[%clk 0:02:58.4]} 2. Nc3 {[%clk 0:03:00.5]}
2... d5 {[%clk 0:02:58.1]} 3. Nf3 {[%clk 0:03:00.6]} 3... Bg4 {[%clk 0:02:55]}
4. h3 {[%clk 0:02:59.2]} 4... Bxf3 {[%clk 0:02:55.1]} 5. Qxf3 {[%clk 0:02:58.9]}
5... Nf6 {[%clk 0:02:54]} 6. Be2 {[%clk 0:02:59.1]} 6... dxe4 {[%clk 0:02:51.3]}
7. Nxe4 {[%clk 0:02:58.5]} 7... Nxe4 {[%clk 0:02:51.2]} 8. Qxe4 {[%clk
0:02:58.6]} 8... Qd5 {[%clk 0:02:50.8]} 9. Bf3 {[%clk 0:02:55.2]} 9... Qxe4+
{[%clk 0:02:50.4]} 10. Bxe4 {[%clk 0:02:55.7]} 10... e5 {[%clk 0:02:46.8]} 11.
O-O {[%clk 0:02:55]} 11... Bc5 {[%clk 0:02:44.8]} 12. Kh1 {[%clk 0:02:52.4]}
12... O-O {[%clk 0:02:42.4]} 13. f4 {[%clk 0:02:52.4]} 13... exf4 {[%clk
0:02:39.7]} 14. Rxf4 {[%clk 0:02:53.3]} 14... Re8 {[%clk 0:02:39]} 15. d3 {[%clk
0:02:53.3]} 15... Nd7 {[%clk 0:02:38.3]} 16. Bd2 {[%clk 0:02:51.2]} 16... Ne5
{[%clk 0:02:37]} 17. Raf1 {[%clk 0:02:50.4]} 17... f6 {[%clk 0:02:32]} 18. Bc3
{[%clk 0:02:50.5]} 18... Ng6 {[%clk 0:02:31.5]} 19. Rf5 {[%clk 0:02:46.3]} 19...
Bb6 {[%clk 0:02:15.7]} 20. g3 {[%clk 0:02:40.2]} 20... Bc7 {[%clk 0:02:04.8]}
21. Kg2 {[%clk 0:02:39.6]} 21... Rad8 {[%clk 0:02:03.5]} 22. h4 {[%clk
0:02:38.1]} 22... Ne7 {[%clk 0:02:03.2]} 23. R5f3 {[%clk 0:02:36.7]} 23... Nd5
{[%clk 0:02:02.8]} 24. Bd2 {[%clk 0:02:35.9]} 24... Bb6 {[%clk 0:02:01.8]} 25.
h5 {[%clk 0:02:28.6]} 25... Bd4 {[%clk 0:01:52]} 26. c3 {[%clk 0:02:23.7]} 26...
Be5 {[%clk 0:01:50.2]} 27. d4 {[%clk 0:02:16.9]} 27... Bc7 {[%clk 0:01:43.5]}
28. Bd3 {[%clk 0:02:16.7]} 28... b5 {[%clk 0:01:39]} 29. Ra1 {[%clk 0:02:09.7]}
29... Re7 {[%clk 0:01:36.6]} 30. a4 {[%clk 0:02:09.3]} 30... a6 {[%clk
0:01:36.6]} 31. axb5 {[%clk 0:02:08.1]} 31... axb5 {[%clk 0:01:36.4]} 32. h6
{[%clk 0:02:07.4]} 32... g6 {[%clk 0:01:30.6]} 33. Ra7 {[%clk 0:02:04.2]} 33...
Rde8 {[%clk 0:01:28.2]} 34. Kf2 {[%clk 0:01:52]} 34... Bb6 {[%clk 0:01:23.3]}
35. Rxe7 {[%clk 0:01:50.7]} 35... Rxe7 {[%clk 0:01:22.9]} 36. g4 {[%clk
0:01:48]} 36... b4 {[%clk 0:01:12.2]} 37. Kf1 {[%clk 0:01:46.2]} 37... bxc3
{[%clk 0:01:12]} 38. bxc3 {[%clk 0:01:45.8]} 38... Ba5 {[%clk 0:00:56.9]} 39.
Bc4 {[%clk 0:01:41.5]} 39... Kf7 {[%clk 0:00:47.7]} 40. Bg5 {[%clk 0:01:25.6]}
40... Re6 {[%clk 0:00:34]} 41. Bf4 {[%clk 0:01:04.7]} 41... Ke7 {[%clk
0:00:29.6]} 42. g5 {[%clk 0:01:03.8]} 42... f5 {[%clk 0:00:23.4]} 43. Be5 {[%clk
0:01:03.6]} 43... Kd7 {[%clk 0:00:16.3]} 44. Bb3 {[%clk 0:00:51.9]} 44... Re8
{[%clk 0:00:16.4]} 45. c4 {[%clk 0:00:52]} 45... Nc3 {[%clk 0:00:15]} 46. Bc2
{[%clk 0:00:42.7]} 46... Ra8 {[%clk 0:00:10.9]} 47. d5 {[%clk 0:00:39]} 47...
cxd5 {[%clk 0:00:10.7]} 48. Bxc3 {[%clk 0:00:38.6]} 48... Bxc3 {[%clk
0:00:09.3]} 49. Rxc3 {[%clk 0:00:39.5]} 49... d4 {[%clk 0:00:09.6]} 50. Rd3
{[%clk 0:00:39.7]} 50... Ke6 {[%clk 0:00:09.7]} 51. Rxd4 {[%clk 0:00:40]} 51...
Ke5 {[%clk 0:00:10.6]} 52. Rd7 {[%clk 0:00:38.2]} 52... Rh8 {[%clk 0:00:07.6]}
53. c5 {[%clk 0:00:34.2]} 53... Kf4 {[%clk 0:00:07.9]} 54. c6 {[%clk 0:00:34.7]}
54... Kxg5 {[%clk 0:00:08.4]} 55. c7 {[%clk 0:00:35]} 55... Rc8 {[%clk
0:00:02.9]} 56. Ba4 {[%clk 0:00:34.9]} 56... Kxh6 {[%clk 0:00:02.6]} 57. Bc6
{[%clk 0:00:34.8]} 57... g5 {[%clk 0:00:01.9]} 58. Bb7 {[%clk 0:00:35.2]} 58...
Rxc7 {[%clk 0:00:01.2]} 59. Rxc7 {[%clk 0:00:36.1]} 59... g4 {[%clk 0:00:01.5]}
60. Rc6+ {[%clk 0:00:33.9]} 60... Kg5 {[%clk 0:00:01.6]} 61. Rc7 {[%clk
0:00:34.1]} 61... h5 {[%clk 0:00:02]} 62. Kg2 {[%clk 0:00:34.5]} 62... f4 {[%clk
0:00:02.3]} 63. Rc5+ {[%clk 0:00:34]} 63... Kh4 {[%clk 0:00:02.2]} 64. Rc3
{[%clk 0:00:28.8]} 64... f3+ {[%clk 0:00:02.2]} 65. Bxf3 {[%clk 0:00:28.2]} 1-0

[Event "Late-Titled-Tuesday-Blitz-February-20-2024"]
[Site "Chess.com"]
[Date "2024.02.20"]
[Round "7"]
[White "LuckyTiger"]
[Black "LeninGuerra"]
[Result "1-0"]
[WhiteElo "2777"]
[BlackElo "2577"]
[TimeControl "180+1"]
[EndTime "15:17:57 PST"]
[Termination "LuckyTiger won by resignation"]

1. e4 {[%clk 0:03:00.9]} 1... c5 {[%clk 0:02:59.9]} 2. Nf3 {[%clk 0:03:00.8]}
2... e6 {[%clk 0:03:00.3]} 3. d3 {[%clk 0:03:00.8]} 3... b6 {[%clk 0:02:59.7]}
4. g3 {[%clk 0:03:00.7]} 4... Bb7 {[%clk 0:03:00]} 5. Bg2 {[%clk 0:03:01.5]}
5... d6 {[%clk 0:03:00.3]} 6. O-O {[%clk 0:03:02]} 6... Nf6 {[%clk 0:03:00.4]}
7. Nc3 {[%clk 0:02:54.9]} 7... a6 {[%clk 0:02:59.8]} 8. a4 {[%clk 0:02:53]} 8...
Qc7 {[%clk 0:02:59.9]} 9. d4 {[%clk 0:02:51.1]} 9... cxd4 {[%clk 0:02:58.8]} 10.
Nxd4 {[%clk 0:02:52]} 10... Nbd7 {[%clk 0:02:58.8]} 11. g4 {[%clk 0:02:44.4]}
11... h6 {[%clk 0:02:53.1]} 12. h4 {[%clk 0:02:43.7]} 12... g5 {[%clk
0:02:41.7]} 13. h5 {[%clk 0:02:15.9]} 13... Ne5 {[%clk 0:02:32.6]} 14. f3 {[%clk
0:02:05.8]} 14... d5 {[%clk 0:02:32.3]} 15. f4 {[%clk 0:02:00.1]} 15... Nexg4
{[%clk 0:02:14.2]} 16. e5 {[%clk 0:01:58.9]} 16... Nxe5 {[%clk 0:01:47.4]} 17.
fxe5 {[%clk 0:01:58.5]} 17... Qxe5 {[%clk 0:01:47.3]} 18. Re1 {[%clk 0:01:51]}
18... Ne4 {[%clk 0:01:44.4]} 19. Nxe4 {[%clk 0:01:44.3]} 19... dxe4 {[%clk
0:01:44]} 20. Be3 {[%clk 0:01:43.4]} 20... O-O-O {[%clk 0:01:37.9]} 21. c3
{[%clk 0:01:27.1]} 21... Bd6 {[%clk 0:01:31.2]} 22. Qe2 {[%clk 0:01:10.1]} 22...
f5 {[%clk 0:01:26.2]} 23. Qc4+ {[%clk 0:01:09.2]} 23... Kb8 {[%clk 0:01:00.6]}
24. Nc6+ {[%clk 0:01:08.4]} 24... Bxc6 {[%clk 0:00:57]} 25. Qxc6 {[%clk
0:01:09.3]} 25... Bc5 {[%clk 0:00:48.7]} 26. Bxc5 {[%clk 0:00:58.6]} 26... Qxc5+
{[%clk 0:00:49.6]} 27. Qxc5 {[%clk 0:00:59.2]} 27... bxc5 {[%clk 0:00:50.1]} 28.
Rad1 {[%clk 0:00:54.3]} 28... Kc7 {[%clk 0:00:50.2]} 29. Kf2 {[%clk 0:00:52.9]}
29... Rb8 {[%clk 0:00:48.7]} 30. Re2 {[%clk 0:00:50.9]} 30... Rhd8 {[%clk
0:00:44]} 31. Rxd8 {[%clk 0:00:48.5]} 31... Kxd8 {[%clk 0:00:44.9]} 32. Rd2+
{[%clk 0:00:47]} 32... Ke7 {[%clk 0:00:44.9]} 33. Ke3 {[%clk 0:00:45.1]} 33...
Kf6 {[%clk 0:00:45]} 34. Bf1 {[%clk 0:00:34.9]} 34... a5 {[%clk 0:00:42.1]} 35.
Bb5 {[%clk 0:00:24.5]} 35... Ke5 {[%clk 0:00:41.2]} 36. Rd7 {[%clk 0:00:24]}
36... f4+ {[%clk 0:00:41.3]} 37. Ke2 {[%clk 0:00:22.7]} 37... Rg8 {[%clk
0:00:34.5]} 38. Re7 {[%clk 0:00:22.5]} 38... Kd6 {[%clk 0:00:24.1]} 39. Rd7+
{[%clk 0:00:21.8]} 39... Ke5 {[%clk 0:00:23.4]} 40. Re7 {[%clk 0:00:21.2]} 40...
Kf6 {[%clk 0:00:21.3]} 41. Rh7 {[%clk 0:00:19.8]} 41... g4 {[%clk 0:00:21.6]}
42. Rxh6+ {[%clk 0:00:19.2]} 42... Kg5 {[%clk 0:00:18.8]} 43. Rxe6 {[%clk
0:00:17.7]} 43... g3 {[%clk 0:00:18.9]} 44. Rxe4 {[%clk 0:00:14.7]} 44... g2
{[%clk 0:00:17.2]} 45. Kf2 {[%clk 0:00:08.9]} 45... Kf5 {[%clk 0:00:17.2]} 46.
Re1 {[%clk 0:00:08.4]} 46... f3 {[%clk 0:00:15.1]} 47. Bc6 {[%clk 0:00:06.5]}
47... Kf4 {[%clk 0:00:10.8]} 48. Re4+ {[%clk 0:00:05.4]} 48... Kf5 {[%clk
0:00:10.2]} 49. Re1 {[%clk 0:00:06.1]} 49... Kf4 {[%clk 0:00:10.3]} 50. Bxf3
{[%clk 0:00:06]} 50... Rb8 {[%clk 0:00:09.5]} 51. Re4+ {[%clk 0:00:05.4]} 51...
Kf5 {[%clk 0:00:09.1]} 52. Kxg2 {[%clk 0:00:05.8]} 52... Rxb2+ {[%clk
0:00:09.2]} 53. Kg3 {[%clk 0:00:06.5]} 53... Rc2 {[%clk 0:00:09.4]} 54. c4
{[%clk 0:00:07.1]} 54... Ra2 {[%clk 0:00:08.7]} 55. Rh4 {[%clk 0:00:06.9]} 55...
Ra1 {[%clk 0:00:07]} 56. h6 {[%clk 0:00:06.7]} 56... Rg1+ {[%clk 0:00:07.5]} 57.
Bg2 {[%clk 0:00:07.3]} 1-0